bitfinex/quotes_SOLUSD_20240808
["timestamp","ask_amount","ask_price","bid_price","bid_amount"]
[1723130665193,52.754,159.52,159.34,6.4311]
[1723130665409,59.0228,159.52,159.35,20.0]
[1723130665729,7.27647789,159.51,159.35,20.0]
[1723130665901,7.27647789,159.51,159.36,0.06272443]
[1723130666417,1.00727789,159.51,159.36,0.06272443]
[1723130666593,55.28305122,159.52,159.36,1.31745748]
[1723130666892,1.00727789,159.51,159.37,16.21762049]
[1723130667100,1.00727789,159.51,159.38,0.06271655]
[1723130668022,0.17,159.5,159.38,0.06271655]
[1723130668320,1.00727789,159.49,159.38,0.06271655]
[1723130668623,7.61767789,159.48,159.38,0.06271655]
[1723130669013,45.0,159.47,159.38,0.06271655]
[1723130669207,0.17,159.46,159.38,0.06271655]
[1723130669412,1.17727789,159.46,159.38,0.06271655]
[1723130670299,37.3,159.43,159.38,0.06271655]
[1723130670498,45.17,159.42,159.38,0.06271655]
[1723130670925,45.0,159.42,159.38,0.06271655]
[1723130671228,0.17,159.43,159.38,0.06271655]
[1723130672021,43.5754,159.5,159.38,0.06271655]
[1723130672334,2.52502151,159.5,159.39,16.2556]
[1723130672519,1.00727789,159.52,159.41,6.6434]
[1723130673006,298.0,159.53,159.41,6.6434]
[1723130673207,2.50052355,159.58,159.41,6.6434]
[1723130673422,6.6536,159.59,159.43,16.2556]
[1723130673423,1.00727789,159.59,159.43,16.2556]
[1723130673636,298.0,159.6,159.45,6.6434]
[1723130673834,298.0,159.6,159.46,1.25384302]
[1723130674125,298.0,159.6,159.45,6.6434]
[1723130674340,298.0,159.6,159.46,1.25394252]
[1723130674908,298.0,159.6,159.45,6.6434]
[1723130675418,1.00727789,159.59,159.45,6.6434]
[1723130676910,0.34,159.58,159.45,6.6434]
[1723130677128,1.00727789,159.57,159.45,6.6434]
[1723130677431,46.00727789,159.59,159.45,6.6434]
[1723130678209,37.3,159.63,159.47,16.5355]
[1723130678412,37.3,159.63,159.49,6.4782]
[1723130678619,15.9197,159.64,159.5,1.25349718]
[1723130678920,6.68985864,159.67,159.52,23.0137]
[1723130679135,6.68985864,159.67,159.53,0.34]
[1723130679303,6.68985864,159.67,159.55,16.5355]
[1723130679502,6.68985864,159.67,159.57,6.4782]
[1723130681417,6.68985864,159.67,159.58,0.34]
[1723130681803,6.68985864,159.67,159.57,6.4782]
[1723130682004,1.00727789,159.73,159.59,6.3892]
[1723130682218,276.3465,159.78,159.59,6.3892]
[1723130682219,1.00727789,159.75,159.59,6.3892]
[1723130682412,9.75098858,159.75,159.59,6.3892]
[1723130682632,53.84707789,159.76,159.59,7.64179211]
[1723130682831,53.84707789,159.76,159.6,65.34]
[1723130683109,37.3,159.76,159.6,65.34]
[1723130683338,2.49829059,159.77,159.63,16.3603]
[1723130683634,263.16815499,159.78,159.63,16.3603]
[1723130683827,263.16815499,159.78,159.63,17.61268157]
[1723130684031,260.7,159.78,159.63,17.61268157]
[1723130684216,260.7,159.78,159.64,0.34]
[1723130684538,260.7,159.78,159.65,1.25232284]
[1723130684930,37.3,159.79,159.66,6.1904]
[1723130685156,37.3,159.82,159.67,1.25216624]
[1723130685446,37.3,159.82,159.66,6.1904]
[1723130685447,37.3,159.82,159.7,6.1701]
[1723130685645,37.3,159.82,159.71,1.25206008]
[1723130686047,37.3,159.82,159.7,6.1701]
[1723130686250,39.72599069,159.82,159.7,6.1701]
[1723130686955,46.99036858,159.82,159.7,6.1701]
[1723130687153,45.98309069,159.82,159.7,6.1701]
[1723130687329,39.72599069,159.82,159.7,6.1701]
[1723130687530,46.99026858,159.82,159.7,6.1701]
[1723130687729,46.99026858,159.82,159.71,0.06258697]
[1723130687948,37.3,159.79,159.71,0.06258697]
[1723130688162,1.00727789,159.78,159.71,0.06258697]
[1723130688533,0.34,159.77,159.71,0.06258697]
[1723130688727,1.34727789,159.77,159.71,0.06258697]
[1723130689346,37.3,159.76,159.71,0.06258697]
[1723130689550,46.17727789,159.75,159.71,0.06258697]
[1723130689750,45.34,159.75,159.71,0.06258697]
[1723130690062,1.00727789,159.74,159.71,0.06258697]
[1723130690357,1.34727789,159.73,159.71,0.06258697]
[1723130690536,1.17727789,159.73,159.71,0.06258697]
[1723130690731,0.17,159.72,159.66,6.4697]
[1723130690938,1.00727789,159.71,159.66,6.4697]
[1723130691133,0.17,159.72,159.66,6.4697]
[1723130693047,45.17,159.72,159.66,6.4697]
[1723130693244,0.17,159.71,159.66,6.4697]
[1723130693462,0.17,159.71,159.65,0.06261049]
[1723130693655,37.3,159.7,159.65,0.06261049]
[1723130693844,45.34,159.69,159.65,0.06261049]
[1723130694035,1.00727789,159.68,159.65,0.06261049]
[1723130694244,0.34,159.67,159.65,0.06261049]
[1723130694552,0.17,159.66,159.65,0.06261049]
[1723130695339,1.00727789,159.7,159.65,0.06261049]
[1723130695668,37.3,159.71,159.65,0.06261049]
[1723130695849,2.47260081,159.72,159.65,0.06261049]
[1723130696157,1.00727789,159.73,159.65,0.06261049]
[1723130696959,1.00727789,159.74,159.65,0.06261049]
[1723130697332,1.00727789,159.73,159.65,0.06261049]
[1723130698360,0.17,159.72,159.65,0.06261049]
[1723130700053,2.51043648,159.76,159.66,6.5035]
[1723130700269,1.00727789,159.76,159.66,6.5035]
[1723130700765,38.30727789,159.76,159.66,6.5035]
[1723130701336,0.17,159.75,159.66,6.5035]
[1723130701571,46.34727789,159.75,159.66,6.5035]
[1723130701865,45.34,159.75,159.66,6.5035]
[1723130702259,45.17,159.75,159.66,6.5035]
[1723130702463,37.3,159.79,159.66,6.5035]
[1723130702769,37.3,159.79,159.67,1.2523545]
[1723130702976,37.3,159.79,159.66,6.5035]
[1723130702977,1.00727789,159.78,159.66,6.5035]
[1723130703142,37.3,159.76,159.66,6.5035]
[1723130703341,38.30727789,159.76,159.66,6.5035]
[1723130703953,0.17,159.75,159.66,6.5035]
[1723130704279,45.34,159.75,159.66,6.5035]
[1723130705479,43.5607,159.73,159.66,6.5035]
[1723130705660,45.34,159.72,159.66,6.5035]
[1723130706176,45.0,159.72,159.66,6.5035]
[1723130706383,38.30727789,159.77,159.66,6.5035]
[1723130706660,45.17,159.76,159.66,6.5035]
[1723130706870,37.3,159.77,159.66,6.5035]
[1723130707246,44.09186387,159.8,159.66,6.5035]
[1723130707448,44.09186387,159.8,159.66,7.755755]
[1723130707872,44.09186387,159.8,159.67,20.0]
[1723130708048,44.09186387,159.8,159.68,1.25213518]
[1723130708244,6.79186387,159.8,159.7,6.1689]
[1723130708468,6.79186387,159.8,159.71,1.25202456]
[1723130708670,6.79186387,159.8,159.7,6.1689]
[1723130708855,7.79914176,159.8,159.7,6.1689]
[1723130709058,6.79186387,159.8,159.7,6.1689]
[1723130710246,46.00727789,159.79,159.7,6.1689]
[1723130710447,0.17,159.78,159.7,6.1689]
[1723130711188,0.34,159.78,159.7,6.1689]
[1723130711552,44.56627789,159.77,159.65,16.28501049]
[1723130711881,46.34727789,159.76,159.66,6.0874]
[1723130713385,45.34,159.76,159.66,6.0874]
[1723130713558,45.34,159.76,159.66,7.33987703]
[1723130714089,45.34,159.76,159.66,6.0874]
[1723130714090,0.17,159.76,159.66,6.0874]
[1723130714374,6.79186387,159.8,159.66,6.0874]
[1723130714375,45.09914176,159.8,159.66,6.0874]
[1723130714580,44.09186387,159.8,159.66,6.0874]
[1723130714879,44.09186387,159.8,159.67,20.0]
[1723130715085,1.00727789,159.79,159.67,20.0]
[1723130715386,43.5597,159.76,159.66,6.0874]
[1723130715580,37.3,159.73,159.66,6.0874]
[1723130715796,6.261,159.72,159.65,0.06261049]
[1723130715956,37.3,159.7,159.65,0.06261049]
[1723130716154,1.00727789,159.69,159.65,0.06261049]
[1723130716357,0.17,159.68,159.65,0.06261049]
[1723130716682,0.34,159.68,159.62,6.0298]
[1723130717470,38.30727789,159.67,159.58,6.3491]
[1723130717658,37.3,159.64,159.58,6.3491]
[1723130717853,46.17727789,159.63,159.54,22.6359]
[1723130718171,0.17,159.62,159.54,22.6359]
[1723130718384,1.17727789,159.62,159.54,22.6359]
[1723130718686,1.17727789,159.62,159.55,1.25338902]
[1723130718687,0.17,159.62,159.55,1.25338902]
[1723130718881,0.17,159.62,159.54,22.6359]
[1723130719292,45.17,159.63,159.55,1.31593238]
[1723130719587,30.0,159.68,159.56,0.0626458]
[1723130719770,1.00727789,159.67,159.56,0.0626458]
[1723130720283,38.30727789,159.67,159.56,0.0626458]
[1723130720655,37.3,159.63,159.56,0.0626458]
[1723130720857,46.34727789,159.62,159.56,0.0626458]
[1723130721064,45.34,159.62,159.56,0.0626458]
[1723130721769,1.00727789,159.61,159.56,0.0626458]
[1723130721966,0.17,159.6,159.56,0.0626458]
[1723130722266,45.34,159.62,159.56,0.0626458]
[1723130722659,1.00727789,159.61,159.56,0.0626458]
[1723130722878,1.34727789,159.6,159.56,0.0626458]
[1723130723187,0.34,159.6,159.56,0.0626458]
[1723130723382,1.34727789,159.6,159.56,0.0626458]
[1723130724281,1.00727789,159.59,159.56,0.0626458]
[1723130724484,37.3,159.65,159.56,0.0626458]
[1723130724687,1.00727789,159.67,159.56,0.0626458]
[1723130725283,37.3,159.68,159.56,0.0626458]
[1723130725492,37.3,159.71,159.56,1.31593983]
[1723130725693,1.00727789,159.7,159.57,16.4458]
[1723130726788,43.83550461,159.71,159.57,16.4458]
[1723130726971,46.34727789,159.7,159.57,16.4458]
[1723130727162,45.34,159.7,159.57,16.4458]
[1723130727360,46.34727789,159.7,159.57,16.4458]
[1723130727999,15.0716,159.73,159.58,7.77967068]
[1723130728281,15.0716,159.73,159.58,6.5266]
[1723130728612,260.7,159.75,159.58,6.5266]
[1723130728613,260.7,159.75,159.59,20.17]
[1723130728786,37.3,159.77,159.61,6.5266]
[1723130729084,37.3,159.77,159.62,65.34]
[1723130729295,1.00727789,159.76,159.62,20.17]
[1723130729582,38.30727789,159.76,159.62,20.0]
[1723130730762,45.34,159.75,159.62,20.0]
[1723130730964,1.00727789,159.74,159.61,6.5266]
[1723130731281,1.34727789,159.73,159.61,6.5266]
[1723130731489,0.17,159.72,159.61,6.5266]
[1723130731791,1.00727789,159.71,159.61,6.5266]
[1723130731966,1.34727789,159.7,159.61,6.5266]
[1723130732160,38.47727789,159.7,159.61,6.5266]
[1723130732475,45.17,159.69,159.61,6.5266]
[1723130732666,0.17,159.68,159.61,6.5266]
[1723130733977,1.17727789,159.68,159.61,6.5266]
[1723130734181,0.17,159.67,159.57,22.5477]
[1723130734384,0.17,159.68,159.57,22.5477]
[1723130735298,0.17,159.68,159.58,1.25293374]
[1723130735508,0.17,159.68,159.57,22.5477]
[1723130735869,1.00727789,159.67,159.57,22.5477]
[1723130736084,0.34,159.66,159.57,22.5477]
[1723130737370,37.3,159.72,159.58,1.25300639]
[1723130737570,43.5594,159.76,159.58,1.25300639]
[1723130737775,43.5594,159.76,159.58,21.25300639]
[1723130737983,1.00727789,159.75,159.58,20.0]
[1723130738384,6.2602,159.74,159.58,20.0]
[1723130738706,1.00727789,159.73,159.58,20.0]
[1723130738869,0.17,159.72,159.58,20.0]
[1723130739070,1.00727789,159.71,159.57,22.5477]
[1723130739269,1.34727789,159.7,159.57,22.5477]
[1723130739504,0.17,159.69,159.57,22.5477]
[1723130739676,1.00727789,159.68,159.57,22.5477]
[1723130739874,1.34727789,159.67,159.57,22.5477]
[1723130740997,1.00727789,159.66,159.57,22.5477]
[1723130741307,0.34,159.65,159.57,22.5477]
[1723130741471,0.17,159.65,159.57,22.5477]
[1723130742104,1.17727789,159.65,159.57,22.5477]
[1723130742395,0.17,159.64,159.57,22.5477]
[1723130742604,1.17727789,159.64,159.57,22.5477]
[1723130742972,0.17,159.63,159.57,22.5477]
[1723130743609,1.34727789,159.64,159.57,22.5477]
[1723130743779,1.34727789,159.64,159.57,6.1019]
[1723130744876,0.34,159.64,159.57,6.1019]
[1723130745381,45.0,159.65,159.57,6.1019]
[1723130745785,39.74627498,159.69,159.57,6.1019]
[1723130746100,1.00727789,159.68,159.57,6.1019]
[1723130746298,1.00727789,159.67,159.57,6.1019]
[1723130746510,37.3,159.66,159.57,6.1019]
[1723130746800,1.00727789,159.65,159.57,6.1019]
[1723130746994,1.00727789,159.64,159.57,6.1019]
[1723130747204,0.34,159.63,159.57,6.1019]
[1723130747406,1.00727789,159.62,159.57,6.1019]
[1723130747579,0.34,159.61,159.57,6.1019]
[1723130747778,1.00727789,159.6,159.56,0.0626458]
[1723130747978,0.34,159.59,159.56,0.0626458]
[1723130748172,1.00727789,159.58,159.49,6.4868]
[1723130748387,1.34727789,159.57,159.49,6.4868]
[1723130749403,0.34,159.57,159.49,6.4868]
[1723130749711,0.34,159.58,159.49,6.4868]
[1723130750276,1.00727789,159.62,159.49,6.4868]
[1723130750591,260.7,159.66,159.49,6.4868]
[1723130750592,267.24137444,159.66,159.5,1.25349675]
[1723130750794,267.24137444,159.66,159.5,21.25349675]
[1723130750995,269.73345371,159.66,159.5,21.25349675]
[1723130751184,269.73345371,159.66,159.51,6.1795]
[1723130751387,1.00727789,159.65,159.51,6.1795]
[1723130751598,269.73345371,159.66,159.52,1.25339929]
[1723130751902,269.73345371,159.66,159.53,16.2885]
[1723130752079,3.23929661,159.68,159.55,6.1795]
[1723130752284,3.23929661,159.68,159.56,1.25308997]
[1723130752713,3.23929661,159.68,159.56,21.25308997]
[1723130753078,3.23929661,159.68,159.56,20.0]
[1723130753384,1.00727789,159.67,159.55,6.1795]
[1723130753985,0.34,159.66,159.55,6.1795]
[1723130754401,1.00727789,159.65,159.55,6.1795]
[1723130754604,1.34727789,159.64,159.55,6.1795]
[1723130754807,0.17,159.63,159.55,6.1795]
[1723130754990,0.34,159.63,159.55,6.1795]
[1723130755191,1.00727789,159.62,159.55,6.1795]
[1723130755388,0.34,159.61,159.55,6.1795]
[1723130755584,1.00727789,159.6,159.55,6.1795]
[1723130755809,0.34,159.59,159.44,22.4327]
[1723130756128,1.00727789,159.58,159.44,22.4327]
[1723130756287,1.34727789,159.57,159.44,22.4327]
[1723130756492,1.17727789,159.57,159.44,22.4327]
[1723130756689,0.17,159.57,159.44,22.4327]
[1723130756926,0.17,159.58,159.44,22.4327]
[1723130757222,1.00727789,159.57,159.45,20.0]
[1723130757508,0.17,159.58,159.45,20.0]
[1723130757509,0.34,159.56,159.45,20.0]
[1723130758212,2.45327145,159.61,159.46,46.59378345]
[1723130758386,0.17,159.6,159.48,6.1906]
[1723130758585,0.17,159.6,159.49,20.0]
[1723130759096,0.17,159.61,159.49,20.0]
[1723130759490,1.00727789,159.6,159.49,20.0]
[1723130759696,0.34,159.59,159.49,20.0]
[1723130759895,1.34727789,159.61,159.48,6.1906]
[1723130759896,1.17727789,159.58,159.48,6.1906]
[1723130760101,2.50980732,159.64,159.49,15.8635]
[1723130760299,1.00727789,159.64,159.49,15.8635]
[1723130761337,37.3,159.65,159.49,15.8635]
[1723130761523,37.3,159.62,159.49,15.8635]
[1723130761726,46.17727789,159.61,159.49,15.8635]
[1723130762015,45.17,159.61,159.5,1.25384564]
[1723130762324,0.17,159.6,159.5,1.25384564]
[1723130762510,1.00727789,159.66,159.49,17.11710628]
[1723130762828,1.00727789,159.66,159.5,26.3168]
[1723130763009,37.3,159.65,159.5,26.3168]
[1723130763206,37.3,159.65,159.5,27.57034383]
[1723130763814,38.30727789,159.65,159.5,26.3168]
[1723130764011,1.00727789,159.64,159.5,26.3168]
[1723130764718,37.3,159.65,159.5,26.3168]
[1723130764719,43.5651,159.62,159.5,6.3168]
[1723130764925,1.00727789,159.61,159.5,6.3168]
[1723130765229,1.00727789,159.6,159.5,6.3168]
[1723130765518,0.17,159.59,159.5,6.3168]
[1723130766316,0.34,159.6,159.5,6.3168]
[1723130767204,37.3,159.65,159.51,1.25370051]
[1723130767516,37.3,159.65,159.5,6.3168]
[1723130767517,39.76708382,159.65,159.52,1.2534072]
[1723130767713,3.23929661,159.74,159.55,6.1032]
[1723130767914,37.3,159.75,159.58,6.1032]
[1723130768113,273.74996387,159.8,159.58,6.1032]
[1723130768114,39.76088761,159.78,159.61,16.6244]
[1723130768323,6.79186387,159.8,159.62,66.59232318]
[1723130768497,6.79186387,159.8,159.63,6.6637]
[1723130768818,6.79186387,159.8,159.64,66.42212479]
[1723130769120,6.79186387,159.8,159.65,1.42212566]
[1723130769305,6.79186387,159.8,159.66,0.17]
[1723130769520,6.79186387,159.8,159.68,6.5725]
[1723130769825,6.79186387,159.8,159.69,15.6966]
[1723130772721,45.34,159.79,159.69,15.6966]
[1723130772930,46.34727789,159.79,159.69,15.6966]
[1723130773603,45.34,159.79,159.68,6.5725]
[1723130773914,45.58,159.77,159.68,6.5725]
[1723130774224,45.34,159.76,159.68,6.5725]
[1723130775115,45.0,159.76,159.68,6.5725]
[1723130776606,0.34,159.75,159.68,6.5725]
[1723130778023,45.0,159.76,159.68,6.5725]
[1723130778200,6.79186387,159.8,159.68,6.5725]
[1723130778407,6.79186387,159.8,159.69,1.25204265]
[1723130778609,0.8354333,159.87,159.7,1.42211703]
[1723130778828,0.8354333,159.87,159.71,7.51073551]
[1723130779031,0.8354333,159.87,159.72,65.17]
[1723130779226,0.8354333,159.87,159.73,0.17]
[1723130779400,0.8354333,159.87,159.73,1.42155951]
[1723130779910,0.8354333,159.87,159.75,6.0806]
[1723130780221,0.8354333,159.87,159.76,1.25143804]
[1723130780430,0.8354333,159.87,159.75,6.0806]
[1723130780923,0.8354333,159.87,159.76,1.25146173]
[1723130781328,0.8354333,159.87,159.75,6.0806]
[1723130781904,0.17,159.86,159.75,6.0806]
[1723130782334,0.8354333,159.87,159.75,6.0806]
[1723130782707,0.8354333,159.87,159.76,17.80762625]
[1723130782907,0.8354333,159.87,159.77,1.59120982]
[1723130783114,0.8354333,159.87,159.78,6.127]
[1723130783320,0.8354333,159.87,159.79,21.2511032]
[1723130783521,0.8354333,159.87,159.79,20.0]
[1723130784432,0.8354333,159.87,159.78,6.127]
[1723130785209,0.17,159.86,159.78,6.127]
[1723130785411,0.8354333,159.87,159.78,6.127]
[1723130786110,0.17,159.86,159.78,6.127]
[1723130786321,0.34,159.86,159.78,6.127]
[1723130788410,45.8354333,159.87,159.78,6.127]
[1723130788411,0.8354333,159.87,159.78,6.127]
[1723130789725,0.17,159.86,159.78,6.127]
[1723130790433,1.00727789,159.85,159.78,6.127]
[1723130790618,0.34,159.84,159.66,21.5508]
[1723130790826,1.00727789,159.83,159.66,21.5508]
[1723130791017,1.34727789,159.82,159.66,21.5508]
[1723130791213,46.34727789,159.82,159.66,21.5508]
[1723130791529,6.2575,159.81,159.66,21.5508]
[1723130791723,37.31,159.78,159.66,21.5508]
[1723130791930,0.34,159.77,159.67,1.25215847]
[1723130792115,45.0,159.77,159.68,1.25216346]
[1723130792320,37.31,159.81,159.68,1.25216346]
[1723130792626,45.34,159.8,159.66,22.80282289]
[1723130792831,45.34,159.8,159.67,20.0]
[1723130793233,45.34,159.8,159.68,1.251992]
[1723130793823,45.34,159.8,159.67,21.25207841]
[1723130794035,37.31,159.84,159.69,6.0487]
[1723130794233,38.1454333,159.87,159.72,6.0487]
[1723130794426,38.1454333,159.87,159.73,1.25160518]
[1723130794647,1.00727789,159.86,159.72,6.0487]
[1723130794944,40.66578997,159.87,159.72,6.0487]
[1723130795567,41.67306786,159.87,159.72,6.0487]
[1723130795846,6.2558,159.86,159.72,6.0487]
[1723130796062,0.8354333,159.87,159.73,1.25167696]
[1723130796225,38.1454333,159.87,159.74,1.25160412]
[1723130796637,38.1454333,159.87,159.73,65.17]
[1723130796638,38.1454333,159.87,159.73,66.42148039]
[1723130796839,38.1454333,159.87,159.74,0.17]
[1723130797534,0.17,159.86,159.73,20.0]
[1723130797732,0.34,159.86,159.73,20.0]
[1723130797957,45.34,159.86,159.73,20.0]
[1723130798840,82.65,159.86,159.73,20.0]
[1723130802235,82.65,159.86,159.74,1.25163512]
[1723130802640,82.48,159.86,159.74,1.25163512]
[1723130802857,45.17,159.86,159.74,1.25163512]
[1723130803156,0.8354333,159.87,159.75,22.7818]
[1723130803358,0.8354333,159.87,159.76,20.0]
[1723130803565,0.8354333,159.87,159.77,7.59899507]
[1723130803736,0.8354333,159.87,159.78,65.0]
[1723130803936,0.8354333,159.87,159.8,6.0076]
[1723130804238,0.8354333,159.87,159.81,1.25100923]
[1723130804443,0.8354333,159.87,159.8,6.0076]
[1723130804937,5.67579712,159.92,159.81,12.0979]
[1723130805141,5.67579712,159.92,159.82,66.25073945]
[1723130805339,12.9333333,160.03,159.85,37.31]
[1723130805554,0.8354333,160.03,159.87,6.4565]
[1723130805761,0.8354333,160.03,159.89,6.4565]
[1723130805966,0.8354333,160.03,159.91,15.5093]
[1723130807244,0.8354333,160.03,159.92,1.2503246]
[1723130807446,0.8354333,160.03,159.91,15.5093]
[1723130808557,38.1454333,160.03,159.91,15.5093]
[1723130808766,38.1454333,160.03,159.89,6.4565]
[1723130808767,37.31,160.0,159.89,6.4565]
[1723130808958,0.34,159.99,159.89,6.4565]
[1723130809466,0.8354333,160.03,159.9,1.2505123]
[1723130810137,0.8354333,160.03,159.9,21.2505123]
[1723130810335,0.8354333,160.03,159.91,45.17]
[1723130810547,0.8354333,160.03,159.92,1.42003211]
[1723130810762,0.8354333,160.03,159.93,1.25003285]
[1723130811068,0.8354333,160.03,159.94,22.4548]
[1723130811274,0.8354333,160.03,159.95,1.24992688]
[1723130811558,16.6495,160.12,159.94,22.4548]
[1723130811559,20.17,160.15,159.96,1.24985198]
[1723130811759,17.4456333,160.19,159.98,6.1568]
[1723130811962,17.4456333,160.19,159.99,66.58925258]
[1723130812162,23.97555437,160.19,159.99,66.58925258]
[1723130812473,46.39727789,160.18,159.99,66.58925258]
[1723130812663,45.39,160.18,159.99,81.58715258]
[1723130812876,45.39,160.18,159.99,36.58715258]
[1723130813056,6.2434,160.17,159.99,36.58715258]
[1723130813366,3.30891734,160.19,160.0,1.24946353]
[1723130813671,0.8354333,160.19,160.01,0.34]
[1723130813842,0.8354333,160.19,160.02,1.2491825]
[1723130814045,0.8354333,160.19,160.03,0.34]
[1723130814242,0.8354333,160.19,160.04,7.44140196]
[1723130814565,0.8354333,160.19,160.04,6.1923]
[1723130815067,0.8354333,160.19,160.05,1.24923164]
[1723130815244,0.8354333,160.19,160.06,0.17]
[1723130815440,0.8354333,160.19,160.05,1.24923164]
[1723130815762,0.8354333,160.19,160.04,7.44132118]
[1723130815950,0.8354333,160.19,160.05,0.34]
[1723130816274,0.8354333,160.19,160.04,6.1923]
[1723130816439,0.17,160.18,160.04,6.1923]
[1723130816637,6.4133,160.18,160.04,6.1923]
[1723130816859,45.0,160.17,160.04,6.1923]
[1723130817064,0.17,160.16,160.04,6.1923]
[1723130817237,0.34,160.16,160.05,1.24933358]
[1723130817437,0.34,160.16,160.04,6.1923]
[1723130817940,6.5838,160.16,160.04,6.1923]
[1723130818141,6.2457,160.11,160.04,6.1923]
[1723130818366,51.5864,160.1,159.99,14.9979]
[1723130818846,45.34,160.1,159.99,14.9979]
[1723130819458,0.34,160.1,159.98,6.2971]
[1723130819662,6.5863,160.1,159.98,6.2971]
[1723130819962,45.0,160.09,159.98,6.2971]
[1723130820168,6.2484,160.04,159.93,21.4998]
[1723130820369,6.2501,160.0,159.93,6.5016]
[1723130820667,6.2501,160.0,159.88,6.5016]
[1723130820668,0.34,159.99,159.88,6.5016]
[1723130820875,45.34,159.99,159.88,6.5016]
[1723130821254,45.34,159.99,159.89,1.25069421]
[1723130823165,16.599,160.13,159.88,7.75208829]
[1723130823367,16.599,160.13,159.9,6.5954]
[1723130823368,45.39,160.12,159.9,6.5954]
[1723130823543,22.8439,160.13,159.91,46.58970017]
[1723130823751,22.8439,160.13,159.92,21.4906]
[1723130823948,25.27756857,160.13,159.93,46.58973149]
[1723130824150,6.2453,160.12,159.94,20.0]
[1723130824347,19.03266857,160.13,159.94,21.24981115]
[1723130824756,19.03266857,160.13,159.94,1.24981115]
[1723130825359,6.2467,160.09,159.94,1.24981115]
[1723130825546,6.2467,160.09,159.94,1.25013518]
[1723130825755,6.2479,160.06,159.92,21.4906]
[1723130825955,6.2479,160.06,159.93,1.25028718]
[1723130825956,45.17,160.05,159.93,1.25028718]
[1723130826173,0.17,160.04,159.93,1.25028718]
[1723130827271,45.39,160.09,159.93,21.25028718]
[1723130827456,45.39,160.16,159.94,45.34]
[1723130827653,45.39,160.16,159.95,1.24983642]
[1723130827985,51.92291893,160.12,159.93,20.0]
[1723130828161,6.2465,160.09,159.94,1.25004716]
[1723130828471,51.92291893,160.12,159.94,1.25004716]
[1723130828649,6.2459,160.11,159.94,46.25004716]
[1723130828849,6.53291893,160.12,159.95,20.0]
[1723130829061,22.14711893,160.12,159.93,21.25005005]
[1723130829264,40.99711893,160.12,159.93,21.25005005]
[1723130829575,6.2467,160.09,159.94,0.17]
[1723130829773,45.0,160.08,159.94,0.17]
[1723130830075,0.17,160.07,159.94,1.41991457]
[1723130831369,0.17,160.07,159.93,20.0]
[1723130831576,6.4175,160.07,159.93,20.0]
[1723130831875,45.0,160.06,159.92,21.4906]
[1723130832178,45.39,160.04,159.92,21.4906]
[1723130832352,6.25,160.0,159.92,21.4906]
[1723130832555,0.34,159.99,159.92,21.4906]
[1723130832764,0.17,159.99,159.92,6.4924]
[1723130833168,45.34,159.99,159.92,6.4924]
[1723130833353,0.17,159.98,159.92,6.4924]
[1723130834556,6.4207,159.98,159.92,6.4924]
[1723130834858,45.0,159.97,159.92,6.4924]
[1723130835065,0.34,159.96,159.92,6.4924]
[1723130835249,0.34,159.96,159.87,21.3813]
[1723130835958,6.26651602,160.05,159.88,1.251002]
[1723130836572,6.2491,160.03,159.88,1.251002]
[1723130836957,6.2491,160.03,159.88,21.251002]
[1723130837382,0.17,160.02,159.88,21.251002]
[1723130837568,6.4188,160.03,159.88,21.251002]
[1723130837774,6.2493,160.02,159.88,20.0]
[1723130837972,6.4196,160.01,159.88,20.0]
[1723130838479,43.45,160.0,159.87,21.3813]
[1723130838710,6.4204,159.99,159.87,21.3813]
[1723130838885,0.17,159.98,159.87,21.3813]
[1723130839066,37.2,159.97,159.87,21.3813]
[1723130839386,45.34,159.96,159.87,21.3813]